bitfinex-derivatives/quotes_ETHF0:USTF0_20250217
["timestamp","ask_amount","ask_price","bid_price","bid_amount"]
[1739758123619,6.73562753,2677.0,2676.9,0.74702]
[1739758123817,9.17362753,2677.0,2676.9,0.74702]
[1739758126316,9.17162753,2677.0,2676.9,0.74702]
[1739758126511,6.73562753,2677.0,2676.9,0.74702]
[1739758126716,9.17162753,2677.0,2676.9,0.74702]
[1739758126914,5.96382753,2677.0,2676.9,0.74702]
[1739758127611,44.0078,2677.3,2676.9,0.74702]
[1739758127612,3.2078,2677.3,2677.2,0.74694]
[1739758127918,5.6438,2677.3,2677.2,0.74694]
[1739758130016,2.436,2677.3,2677.2,3.95474]
[1739758130411,0.00559785,2677.6,2677.5,0.74686]
[1739758130611,2.44359785,2677.6,2677.5,0.74686]
[1739758131015,2.44259785,2677.6,2677.5,0.74686]
[1739758133314,2.44259785,2677.6,2677.2,3.2078]
[1739758133516,2.44259785,2677.6,2677.5,0.74686]
[1739758134222,2.44259785,2677.6,2677.3,0.74689]
[1739758134414,2.93372753,2677.4,2677.3,0.74689]
[1739758135225,2.93372753,2677.4,2677.3,0.74691]
[1739758136109,3.52992753,2677.4,2677.3,0.74691]
[1739758137818,0.00559785,2677.6,2677.5,0.74686]
[1739758138024,2.43759785,2677.6,2677.5,0.74686]
[1739758139116,0.00559785,2677.6,2677.5,1.90596]
[1739758139319,2.43859785,2677.6,2677.5,1.90596]
[1739758139523,0.00559785,2677.6,2677.5,1.90596]
[1739758139711,2.436,2677.8,2677.7,0.7468]
[1739758139915,4.07762753,2678.3,2678.2,0.74666]
[1739758140114,6.51462753,2678.3,2678.2,0.74666]
[1739758140315,44.0078,2678.4,2677.8,1.86694]
[1739758140516,2.436,2678.3,2678.2,0.74666]
[1739758140822,2.44259785,2678.5,2678.2,0.5979]
[1739758141019,2.44259785,2678.5,2678.4,0.74661]
[1739758141726,0.74661,2678.4,2678.1,3.95447]
[1739758141919,2.93372753,2678.3,2678.1,3.95447]
[1739758142119,2.93372753,2678.3,2678.2,0.74666]
[1739758142723,2.44259785,2678.5,2678.1,3.2078]
[1739758143335,2.93372753,2678.3,2678.1,3.2078]
[1739758144821,2.93372753,2678.3,2678.1,3.95447]
[1739758145629,2.93372753,2678.3,2678.1,3.2078]
[1739758145831,2.93372753,2678.3,2678.2,0.74666]
[1739758146324,4.93379785,2678.5,2678.2,0.74666]
[1739758146518,4.93379785,2678.5,2678.4,0.74661]
[1739758146725,5.65439785,2678.5,2678.4,0.74661]
[1739758148232,5.65439785,2678.5,2678.3,0.5646]
[1739758148535,5.65439785,2678.5,2678.4,0.74661]
[1739758149535,6.40097785,2678.5,2678.4,0.74661]
[1739758149834,5.65439785,2678.5,2678.4,0.74661]
[1739758150224,0.00559785,2678.5,2678.4,0.74661]
[1739758150430,2.44259785,2678.5,2678.4,0.74661]
[1739758153032,2.44259785,2678.5,2678.1,0.5737]
[1739758153330,2.93372753,2678.3,2678.2,0.74665]
[1739758154335,2.93372753,2678.3,2678.2,0.74666]
[1739758156034,2.93372753,2678.3,2678.0,0.00559785]
[1739758156232,1.1631,2678.2,2678.1,0.74669]
[1739758156429,1.7501,2678.2,2678.1,0.74669]
[1739758156831,1.7501,2678.2,2678.0,0.75229785]
[1739758157135,2.435,2678.1,2678.0,0.75229785]
[1739758159040,3.18169,2678.1,2678.0,0.00559785]
[1739758160140,6.38949,2678.1,2678.0,0.00559785]
[1739758160337,12.38949,2678.1,2678.0,0.00559785]
[1739758160534,11.6428,2678.1,2677.4,3.7877]
[1739758160736,2.93372753,2677.6,2677.4,3.7877]
[1739758160933,2.44,2677.5,2677.4,0.5799]
[1739758161539,3.0391,2677.5,2676.9,1.1123]
[1739758161742,3.0391,2677.5,2677.0,0.5799]
[1739758161945,2.93372753,2677.3,2677.1,0.74695]
[1739758162637,2.93372753,2677.3,2677.2,0.74694]
[1739758162941,2.93372753,2677.3,2677.0,0.5799]
[1739758163143,2.93372753,2677.3,2677.1,0.74696]
[1739758163345,2.93372753,2677.3,2677.0,0.5799]
[1739758163544,43.24,2677.5,2677.0,0.5799]
[1739758163935,43.24,2677.5,2677.3,0.74689]
[1739758164436,2.44,2677.5,2677.3,0.74689]
[1739758164742,0.74689,2677.4,2677.1,0.74696]
[1739758164933,1.33639,2677.4,2677.1,0.74696]
[1739758165128,0.5895,2677.4,2677.0,0.5799]
[1739758165644,0.5895,2677.4,2677.3,0.74691]
[1739758165941,2.44,2677.5,2677.0,0.5799]
[1739758166142,3.18687,2677.5,2677.3,0.7469]
[1739758166335,2.44,2677.5,2677.4,0.74688]
[1739758166936,3.18686,2677.5,2677.3,0.74689]
[1739758167342,2.44,2677.5,2677.4,0.74688]
[1739758167731,8.44,2677.5,2677.4,0.74688]
[1739758167936,8.44,2677.5,2676.7,3.2078]
[1739758167937,0.7469,2677.4,2676.7,5.07548]
[1739758168249,2.93372753,2677.2,2677.1,0.74694]
[1739758170136,2.93372753,2677.2,2676.9,0.5481]
[1739758170332,2.437,2677.1,2676.9,0.74702]
[1739758170639,4.1624,2677.1,2677.0,0.747]
[1739758171146,4.1624,2677.1,2676.9,0.74701]
[1739758171147,4.90937,2677.1,2676.9,0.74701]
[1739758171641,0.747,2677.0,2676.8,1.29344]
[1739758172239,4.1624,2677.1,2676.8,0.5464]
[1739758172438,2.437,2677.1,2677.0,0.747]
[1739758173045,2.437,2677.1,2676.8,0.5464]
[1739758173243,3.18398,2677.1,2676.8,0.5464]
[1739758173544,3.18398,2677.1,2676.9,0.74702]
[1739758173545,0.5498,2677.0,2676.9,0.74702]
[1739758173738,0.5498,2677.0,2676.8,0.5464]
[1739758173942,0.5498,2677.0,2676.8,1.29344]
[1739758174143,0.5498,2677.0,2676.9,0.74702]
[1739758176448,2.437,2677.1,2676.8,0.5464]
[1739758176645,2.437,2677.1,2677.0,0.747]
[1739758177147,3.18397,2677.1,2677.0,0.747]
[1739758177536,2.437,2677.1,2677.0,0.747]
[1739758178246,2.437,2677.1,2676.9,0.74701]
[1739758178446,3.18399,2677.1,2676.8,0.5464]
[1739758178646,3.18399,2677.1,2677.0,0.747]
[1739758179248,3.18397,2677.1,2677.0,0.747]
[1739758179547,2.437,2677.1,2677.0,0.747]
[1739758179946,3.18397,2677.1,2677.0,0.747]
[1739758180351,2.437,2677.1,2677.0,0.747]
[1739758180542,3.18397,2677.1,2677.0,0.747]
[1739758180746,2.437,2677.1,2677.0,0.747]
[1739758181251,3.18397,2677.1,2677.0,0.747]
[1739758181451,2.437,2677.1,2677.0,0.747]
[1739758181750,3.18397,2677.1,2677.0,0.747]
[1739758182050,2.437,2677.1,2677.0,0.747]
[1739758183745,2.93372753,2677.2,2676.8,2.41402]
[1739758183952,2.93372753,2677.2,2677.1,0.74697]
[1739758184248,3.2078,2677.4,2676.9,5.07535]
[1739758184452,2.428,2677.3,2677.2,0.74694]
[1739758185151,2.93372753,2677.5,2677.2,3.2078]
[1739758185344,2.428,2677.4,2677.3,1.32471]
[1739758186151,3.2078,2677.8,2677.6,0.74683]
[1739758186353,3.2078,2677.8,2677.3,2.44508]
[1739758186354,2.429,2677.7,2677.3,0.5778]
[1739758186539,2.93372753,2677.6,2677.5,0.74686]
[1739758187447,5.36172753,2677.6,2677.5,0.74686]
[1739758188651,5.36172753,2677.6,2677.3,0.5778]
[1739758188950,5.36172753,2677.6,2677.5,0.74686]
[1739758191254,5.94142753,2677.6,2677.5,0.74686]
[1739758191945,0.74688,2677.4,2677.3,0.5778]
[1739758192148,0.74688,2677.4,2677.0,0.5906]
[1739758192352,2.93372753,2677.2,2676.8,0.5903]
[1739758192549,2.425,2677.1,2677.0,0.747]
[1739758202351,0.5886,2677.4,2677.3,0.74691]
[1739758202548,2.93372753,2677.5,2677.0,0.747]
[1739758202752,2.93372753,2677.5,2677.4,0.74688]
[1739758202953,5.35772753,2677.5,2677.4,0.74688]
[1739758203650,3.2078,2677.7,2677.6,0.74683]
[1739758203849,2.424,2677.7,2677.6,0.74683]
[1739758207354,2.93372753,2677.8,2677.7,0.7468]
[1739758207559,5.35672753,2677.8,2677.7,0.7468]
[1739758210059,2.423,2677.8,2677.7,0.7468]
[1739758210255,4.64382753,2678.1,2677.4,1.86718]
[1739758210462,4.64382753,2678.1,2678.0,0.74672]
[1739758210661,7.06682753,2678.1,2678.0,0.74672]
[1739758211257,7.81351753,2678.1,2678.0,0.74672]
[1739758211459,7.06682753,2678.1,2677.9,0.74672]
[1739758212061,0.74673,2678.0,2677.9,0.74674]
[1739758212965,0.74672,2678.0,2677.9,0.74672]
[1739758213161,7.06682753,2678.1,2677.8,0.5768]
[1739758213365,7.06682753,2678.1,2678.0,0.74672]
[1739758214265,7.81351753,2678.1,2678.0,0.74672]
[1739758214964,7.81351753,2678.1,2677.8,0.5768]
[1739758215266,0.74672,2678.0,2677.9,0.74672]
[1739758216472,0.74675,2677.9,2677.7,1.31659]
[1739758216766,3.95454,2678.0,2677.8,0.74677]
[1739758217562,3.95454,2678.0,2677.9,0.74675]
[1739758218268,0.74675,2677.9,2677.8,0.74675]
[1739758218566,3.95453,2678.0,2677.8,0.74675]
[1739758219067,3.95453,2678.0,2677.9,0.74675]
[1739758219457,3.2078,2678.0,2677.9,0.74675]
[1739758223469,3.95454,2678.0,2677.8,0.74675]
[1739758223661,3.95454,2678.0,2677.7,0.5698]
[1739758223861,3.95454,2678.0,2677.8,0.74676]
[1739758224268,3.95454,2678.0,2677.7,0.5698]
[1739758224566,3.95454,2678.0,2677.9,0.74675]
[1739758225865,3.2078,2678.0,2677.9,0.74675]
[1739758226466,3.95452,2678.0,2677.9,0.74675]
[1739758227771,0.74672,2678.0,2677.9,0.74675]
[1739758228067,51.82132753,2678.1,2678.0,0.74672]
[1739758228968,51.82132753,2678.1,2677.9,0.74673]
[1739758230374,51.82132753,2678.1,2677.7,0.5698]
[1739758230575,48.61352753,2678.1,2678.0,0.74672]
[1739758231075,0.74672,2678.0,2677.9,0.74672]
[1739758231374,47.86682753,2678.1,2677.7,0.5698]
[1739758231576,47.86682753,2678.1,2678.0,0.74672]
[1739758231577,48.61353753,2678.1,2678.0,0.74672]
[1739758231783,47.86682753,2678.1,2678.0,0.74672]
[1739758232274,48.61351753,2678.1,2678.0,0.74672]
[1739758233274,47.86682753,2678.1,2678.0,0.74672]
[1739758233972,2.9775,2678.1,2678.0,0.74672]
[1739758236384,3.2078,2678.2,2678.1,0.74669]
[1739758236584,3.2078,2678.2,2677.9,1.86687]
[1739758236585,3.21339785,2678.5,2678.4,0.74661]
[1739758236777,3.78919785,2678.5,2678.4,0.74661]
[1739758237082,6.95877785,2678.5,2678.3,0.74662]
[1739758237278,6.95877785,2678.5,2678.1,0.6001]
[1739758237478,6.95877785,2678.5,2678.4,0.74661]
[1739758237685,6.21219785,2678.5,2678.4,0.74661]
[1739758238277,6.21219785,2678.5,2678.1,0.6001]
[1739758238480,6.95877785,2678.5,2678.1,0.6001]
[1739758238680,6.95877785,2678.5,2678.3,0.74663]
[1739758238886,6.95877785,2678.5,2678.1,0.6001]
[1739758239084,6.95877785,2678.5,2678.3,0.74661]
[1739758239695,0.74661,2678.4,2678.2,0.74664]
[1739758239888,6.21219785,2678.5,2678.1,0.6001]
[1739758240286,0.74661,2678.4,2678.2,0.74665]
[1739758240586,0.74661,2678.4,2678.1,0.6001]
[1739758240786,0.74661,2678.4,2678.3,0.74663]
[1739758240979,0.74661,2678.4,2678.2,0.74664]
[1739758242681,0.74661,2678.4,2678.1,0.6001]
[1739758242884,6.95878785,2678.5,2678.3,0.74661]
[1739758243085,6.21219785,2678.5,2678.1,0.6001]
[1739758243287,0.74662,2678.4,2678.1,0.6001]
[1739758243887,6.21219785,2678.5,2678.1,0.6001]
[1739758244389,6.95877785,2678.5,2678.3,0.74662]
[1739758244789,6.95878785,2678.5,2678.3,0.74663]
[1739758247387,6.21219785,2678.5,2678.1,0.6001]
[1739758247587,0.74663,2678.4,2678.1,0.6001]
[1739758247790,0.5681,2678.3,2678.2,0.74666]
[1739758249603,3.50182753,2678.3,2678.0,0.5791]
[1739758249786,0.74667,2678.2,2678.0,1.32581]
[1739758249985,2.422,2678.1,2678.0,1.32581]
[1739758250182,3.0104,2678.1,2678.0,0.5791]
[1739758250484,3.75711,2678.1,2677.8,3.95455]
[1739758250683,2.93372753,2678.0,2677.8,3.2078]
[1739758250890,2.93372753,2678.0,2677.9,0.74674]
[1739758252087,3.68044753,2678.0,2677.8,3.95456]
[1739758252993,2.93372753,2678.0,2677.9,0.74674]
[1739758253292,3.68044753,2678.0,2677.8,3.2078]
[1739758253493,3.68044753,2678.0,2677.8,3.95456]
[1739758255089,0.74676,2677.9,2677.7,0.74679]
[1739758255294,0.5722,2677.8,2677.7,0.74679]
[1739758255596,1.31898,2677.8,2677.6,1.90032]
[1739758255794,1.31898,2677.8,2677.3,0.5442]
[1739758255795,5.91482753,2677.7,2677.3,0.5442]
[1739758255992,3.68060753,2677.4,2677.3,0.566]
[1739758256194,3.68060753,2677.4,2677.1,4.54505]
[1739758256396,3.5533,2677.3,2677.1,4.54505]
[1739758258196,6.7611,2677.3,2676.9,0.566]
[1739758258497,2.93372753,2677.1,2676.4,0.87089709]
[1739758258793,2.93372753,2676.8,2676.6,0.74709]
[1739758258999,2.423,2676.7,2676.6,0.74709]
[1739758260703,0.00559785,2677.0,2676.5,1.1178]
[1739758260992,0.00559785,2677.0,2676.9,0.74702]
[1739758261196,2.42859785,2677.0,2676.9,0.74702]
[1739758262895,0.00559785,2677.0,2676.9,0.74702]
[1739758263307,0.00559785,2677.0,2676.8,0.74703]
[1739758263594,0.00559785,2677.0,2676.9,0.74702]
[1739758263798,0.00559785,2677.0,2676.8,0.74704]
[1739758263995,0.00559785,2677.0,2676.9,0.74702]
[1739758264197,0.59889785,2677.0,2676.9,0.74702]
[1739758264396,0.59889785,2677.0,2676.5,1.1178]
[1739758264593,0.59889785,2677.0,2676.7,0.74707]
[1739758264893,1.34591785,2677.0,2676.5,1.1178]
[1739758265098,1.34591785,2677.0,2676.8,0.74703]
[1739758265496,1.34591785,2677.0,2676.5,1.1178]
[1739758265790,1.34591785,2677.0,2676.8,0.74703]
[1739758265999,3.2078,2676.9,2676.1,3.2078]
[1739758266302,6.14152753,2676.6,2676.1,1.31223]
[1739758266603,3.0034,2676.5,2676.2,0.74722]
[1739758267699,6.14152753,2676.6,2676.1,0.565]
[1739758268008,2.423,2676.5,2676.4,0.74714]
[1739758268705,2.423,2676.5,2676.1,0.565]
[1739758268898,2.423,2676.5,2676.1,1.31224]
[1739758268899,0.74716,2676.4,2676.1,1.31224]
[1739758269203,3.0034,2676.5,2676.1,0.565]
[1739758269709,6.14152753,2676.6,2676.1,0.565]
[1739758270000,3.2078,2676.6,2676.5,0.74714]
[1739758270204,5.6308,2676.6,2676.5,0.74714]
[1739758271004,2.423,2676.6,2676.5,0.74714]
[1739758271507,7.47186753,2676.9,2676.6,0.7471]
[1739758271801,2.423,2676.8,2676.7,0.5647]
[1739758272502,3.17005,2676.8,2676.7,0.5647]
[1739758272895,2.423,2676.8,2676.7,0.5647]
[1739758273093,2.423,2676.8,2676.3,0.5454]
[1739758273290,2.423,2676.8,2676.4,0.5887]
[1739758273494,6.72482753,2676.9,2676.4,0.5887]
[1739758273694,0.00559785,2677.0,2676.9,0.74702]
[1739758273997,2.42859785,2677.0,2676.9,0.74702]
[1739758274201,0.00559785,2677.0,2676.9,0.74702]
[1739758274498,2.42859785,2677.0,2676.9,0.74702]
[1739758274704,0.00559785,2677.0,2676.9,3.95482]
[1739758275501,40.8,2677.7,2677.6,0.74683]
[1739758275802,2.423,2677.7,2677.6,0.74683]
[1739758276001,2.423,2677.7,2677.2,3.2078]
[1739758276203,2.423,2677.7,2677.5,0.74684]
[1739758276803,2.423,2677.7,2677.5,0.74683]
[1739758278804,2.423,2677.7,2677.6,0.5739]
[1739758279006,3.1698,2677.7,2677.6,0.5739]
[1739758279207,2.423,2677.7,2677.6,0.5739]
[1739758280202,2.423,2677.7,2677.6,1.32073]
[1739758280405,3.2078,2677.8,2677.7,0.7468]
[1739758280607,0.00559785,2677.9,2677.8,0.74677]
[1739758280804,2.42859785,2677.9,2677.8,0.74677]
[1739758281710,3.17534785,2677.9,2677.6,4.52852]
[1739758282105,3.17534785,2677.9,2677.6,1.32072]
[1739758282304,0.74677,2677.8,2677.6,0.5739]
[1739758282605,2.42859785,2677.9,2677.6,1.32072]
[1739758282909,3.68052753,2677.7,2677.6,0.5739]
[1739758283209,2.93372753,2677.7,2677.3,0.00559785]
[1739758283502,1.7101,2677.6,2677.3,0.00559785]
[1739758283702,43.223,2677.5,2677.4,0.74687]
[1739758284195,43.96986,2677.5,2677.3,0.00559785]
[1739758284402,3.68060753,2677.4,2677.3,0.00559785]
[1739758285605,2.93372753,2677.4,2677.3,0.00559785]
[1739758285807,2.93372753,2677.4,2677.3,0.75250785]
[1739758286007,2.93372753,2677.4,2677.3,0.00559785]
[1739758286208,3.68060753,2677.4,2677.3,0.00559785]
[1739758287910,2.93372753,2677.4,2677.3,0.00559785]
[1739758288410,3.68060753,2677.4,2677.3,0.00559785]
[1739758288599,2.93372753,2677.4,2677.3,0.00559785]
[1739758288798,3.68060753,2677.4,2677.3,0.00559785]
[1739758290507,2.93372753,2677.4,2677.3,0.00559785]
[1739758290703,6.10360753,2677.4,2677.3,0.00559785]
[1739758290910,3.68060753,2677.4,2677.3,0.00559785]
[1739758291109,6.10360753,2677.4,2677.3,0.00559785]
[1739758292412,5.35672753,2677.4,2677.3,0.75250785]
[1739758293515,6.10360753,2677.4,2677.3,0.75250785]
[1739758293711,5.35672753,2677.4,2677.3,0.75250785]
[1739758294513,2.423,2677.4,2677.3,0.75250785]
[1739758295417,3.7603,2677.6,2677.3,0.00559785]
[1739758295617,3.2078,2677.6,2677.5,0.74686]
[1739758296011,5.6308,2677.6,2677.5,1.29466]
[1739758296520,6.37765,2677.6,2677.4,1.1214]
[1739758296914,1.1028,2677.5,2677.4,1.1214]
[1739758297419,1.1028,2677.5,2677.4,1.86828]
[1739758299418,1.1028,2677.5,2677.4,1.1214]
[1739758299918,1.1028,2677.5,2677.4,1.86828]
[1739758300119,1.1028,2677.5,2677.4,1.1214]
[1739758300422,1.84966,2677.5,2677.4,1.1214]
[1739758301017,1.84966,2677.5,2677.4,1.86828]
[1739758301227,1.84966,2677.5,2677.4,1.1214]
[1739758302112,1.1028,2677.5,2677.4,1.86828]
[1739758302424,2.423,2677.6,2677.5,0.74686]
[1739758304927,3.2078,2677.7,2677.6,0.74683]
[1739758305117,5.6308,2677.7,2677.6,0.74683]
[1739758306923,3.2078,2677.7,2677.6,0.74683]
[1739758307123,5.6308,2677.7,2677.5,0.5962]
[1739758307325,6.37762,2677.7,2677.5,1.34305]
[1739758307524,6.37762,2677.7,2677.6,0.74683]
[1739758308020,6.37762,2677.7,2677.5,1.34304]
[1739758308226,6.37762,2677.7,2677.5,0.74684]
[1739758308927,0.74686,2677.5,2677.4,1.1214]
[1739758309727,1.29206,2677.5,2677.4,1.1214]
[1739758311023,0.74688,2677.4,2677.3,0.75249785]
[1739758311223,1.29207,2677.5,2677.3,0.75249785]
[1739758311426,1.29207,2677.5,2677.3,0.00559785]
[1739758311630,1.29207,2677.5,2677.3,0.75248785]
[1739758313519,0.74688,2677.4,2677.3,0.00559785]
[1739758314717,3.68060753,2677.4,2677.3,0.00559785]
[1739758316927,3.68060753,2677.4,2676.5,1.86782]
[1739758316928,0.74703,2676.9,2676.7,0.74707]
[1739758317123,2.423,2676.8,2676.7,0.74707]
[1739758317328,2.423,2676.8,2676.7,1.34447]
[1739758320033,3.17005,2676.8,2676.7,0.5974]
[1739758320527,2.423,2676.8,2676.7,0.5974]
[1739758320931,3.17005,2676.8,2676.7,0.5974]
[1739758321118,2.423,2676.8,2676.6,3.7499]
[1739758321326,1.29108,2676.7,2676.6,3.7499]
[1739758322734,1.29108,2676.7,2676.4,0.74715]
[1739758322735,0.74711,2676.6,2676.4,0.74715]
[1739758323034,0.74711,2676.6,2676.5,0.74712]
[1739758323339,0.74711,2676.6,2676.3,0.5498]
[1739758323526,0.74715,2676.5,2676.4,0.74716]
[1739758323832,0.74716,2676.4,2676.3,0.5498]
[1739758324033,3.74986,2676.4,2676.3,0.5498]
[1739758324235,0.74719,2676.3,2676.2,3.7486]
[1739758325229,0.5797,2676.4,2676.0,0.5516]
[1739758325428,0.5797,2676.4,2675.8,0.5469]
[1739758325429,3.68098753,2676.1,2675.8,0.5469]
[1739758325628,2.93372753,2676.1,2675.8,0.5469]
[1739758325930,0.5791,2676.2,2675.8,0.5469]
[1739758326228,2.423,2676.1,2676.0,0.74728]
[1739758326432,2.423,2676.1,2676.0,1.84938]
[1739758326634,3.2078,2676.4,2676.3,0.74719]
[1739758326838,0.00559785,2676.5,2676.4,0.74716]
[1739758329235,0.00559785,2676.5,2676.4,1.33726]
[1739758329730,3.95469,2677.4,2677.1,0.74695]
[1739758329931,2.423,2677.3,2677.2,0.74692]
[1739758330132,2.426,2677.6,2677.1,3.2078]
[1739758330434,2.426,2677.7,2677.4,0.74686]
[1739758330737,2.426,2677.7,2677.5,1.32516]
[1739758330944,2.426,2677.7,2677.5,0.5783]
[1739758331135,3.1728,2677.7,2677.5,0.5783]
[1739758331638,2.426,2677.7,2677.5,0.5783]
[1739758332339,0.74683,2677.6,2677.5,0.5783]
[1739758332539,3.17281,2677.7,2677.5,0.5783]
[1739758332835,2.426,2677.7,2677.5,0.5783]
[1739758333433,3.1728,2677.7,2677.5,0.5783]
[1739758333634,2.426,2677.7,2677.5,0.5783]
[1739758334437,0.74683,2677.6,2677.5,0.5783]
[1739758334629,1.30833,2677.6,2677.5,0.5783]
[1739758334831,0.74691,2677.4,2677.1,3.2078]
[1739758335037,2.427,2677.3,2677.1,3.2078]
[1739758335545,2.427,2677.3,2677.2,0.74694]
[1739758335741,2.427,2677.3,2677.1,3.2078]
[1739758336142,3.68066753,2677.2,2677.1,3.2078]
[1739758336943,2.427,2677.3,2677.1,3.2078]
[1739758337142,2.427,2677.3,2677.1,0.74696]
[1739758337731,2.427,2677.3,2677.2,0.74694]
[1739758338239,2.431,2677.3,2677.2,0.74694]
[1739758339543,2.429,2677.3,2677.2,0.74694]
[1739758340341,6.74432538,2677.8,2677.0,3.2078]
[1739758340342,0.74695,2677.2,2677.0,3.2078]
[1739758340536,0.74696,2677.2,2677.0,3.2078]
[1739758340743,0.74694,2677.2,2677.0,3.95479]
[1739758341238,0.74694,2677.2,2677.0,3.2078]
[1739758341437,0.74696,2677.2,2677.0,3.95479]
[1739758341642,2.429,2677.1,2677.0,3.95479]
[1739758345859,3.17597,2677.1,2677.0,3.2078]
[1739758347765,2.429,2677.1,2677.0,3.9548]
[1739758347955,3.17597,2677.1,2677.0,3.9548]
[1739758348658,2.429,2677.1,2677.0,3.9548]
[1739758349354,3.17597,2677.1,2677.0,3.9548]
[1739758349560,3.17597,2677.1,2677.0,0.747]
[1739758349759,3.17597,2677.1,2676.7,3.51417]
[1739758349760,2.429,2677.1,2676.9,3.2078]
[1739758349962,0.747,2677.0,2676.9,3.95481]
[1739758350267,2.429,2677.1,2677.0,0.747]
[1739758350268,3.17598,2677.1,2677.0,0.747]
[1739758350564,2.429,2677.1,2677.0,0.747]
[1739758350767,0.5819,2677.2,2677.1,0.74697]
[1739758350952,0.74698,2677.1,2676.9,3.9548]
[1739758351265,0.74698,2677.1,2677.0,0.747]
[1739758351658,0.74698,2677.1,2676.9,3.2078]
[1739758351864,0.74698,2677.1,2677.0,0.747]
[1739758353261,0.747,2677.0,2676.9,3.2078]
[1739758353465,1.3419,2677.0,2676.9,3.2078]
[1739758354168,0.5949,2677.0,2676.9,3.95482]
[1739758354666,1.3419,2677.0,2676.9,3.95482]
[1739758354867,0.5949,2677.0,2676.9,3.95482]
[1739758355568,2.426,2677.0,2676.9,3.95482]
[1739758356367,0.5651,2677.3,2676.9,3.95482]
[1739758356368,1.31203,2677.3,2677.1,0.74694]
[1739758356678,3.17194,2677.2,2677.1,0.74694]
[1739758356967,0.5651,2677.3,2677.0,0.5823]
[1739758357270,0.74684,2677.6,2677.2,3.2078]
[1739758357464,2.428,2677.5,2677.4,0.74686]
[1739758357961,4.07552753,2677.7,2677.3,0.569]
[1739758358158,0.74686,2677.5,2677.4,0.74686]
[1739758358363,2.428,2677.6,2677.3,0.569]
[1739758358566,0.74687,2677.5,2677.4,0.74686]
[1739758358965,2.428,2677.6,2677.4,0.74686]
[1739758358966,3.17486,2677.6,2677.4,0.74686]
[1739758359472,3.17484,2677.6,2677.5,0.74686]
[1739758360771,0.74688,2677.4,2677.3,1.31589]
[1739758361065,2.428,2677.6,2677.1,1.34345]
[1739758361066,0.74694,2677.2,2677.1,1.34345]
[1739758361267,5.94255753,2677.7,2677.2,0.74693]
[1739758361459,0.74687,2677.5,2677.4,0.74687]
[1739758361677,0.74687,2677.5,2677.1,1.1668]
[1739758362275,0.74687,2677.5,2677.3,0.74689]
[1739758362571,0.74687,2677.5,2677.4,0.74688]
[1739758363267,3.17483,2677.6,2677.5,0.74686]
[1739758364373,2.428,2677.6,2677.5,0.74686]
[1739758364674,3.17483,2677.6,2677.5,0.74686]
[1739758365471,2.428,2677.6,2677.5,0.74686]
[1739758365873,3.17483,2677.6,2677.5,0.74686]
[1739758366768,1.88861,2677.7,2677.6,0.74683]
[1739758366971,3.17781,2677.7,2677.6,0.74683]
[1739758367178,0.74684,2677.6,2677.5,0.74683]
[1739758367874,0.74686,2677.5,2677.4,0.74688]
[1739758368074,5.36472753,2677.7,2677.1,1.1668]
[1739758368277,0.74689,2677.4,2677.3,0.7469]
[1739758368473,0.74687,2677.5,2677.3,0.7469]
[1739758368669,1.32767,2677.5,2677.3,0.74689]
[1739758369266,1.32767,2677.5,2677.4,0.74688]
[1739758369465,0.5808,2677.5,2677.4,0.74688]
[1739758369872,1.32766,2677.5,2677.4,0.74688]
[1739758370376,0.5808,2677.5,2677.4,0.74688]
[1739758370576,1.32766,2677.5,2677.4,0.74688]
[1739758371082,0.74689,2677.4,2677.3,0.7469]
[1739758371271,0.5808,2677.5,2677.3,0.7469]
[1739758371478,0.5496,2677.4,2677.3,0.7469]
[1739758373074,1.29648,2677.4,2677.3,0.7469]
[1739758373378,0.5496,2677.4,2677.3,0.7469]
[1739758373685,1.29648,2677.4,2677.3,0.7469]
[1739758373978,0.5496,2677.4,2677.3,0.7469]
[1739758374180,0.5808,2677.5,2677.1,1.1668]
[1739758374381,0.5808,2677.5,2677.4,0.74688]
[1739758374577,0.7469,2677.4,2677.3,0.7469]
[1739758374882,0.5808,2677.5,2677.3,0.7469]
[1739758375277,0.74688,2677.4,2677.3,0.7469]
[1739758376682,0.74692,2677.3,2677.2,0.74692]
[1739758376878,3.17291,2677.3,2677.2,0.74692]
[1739758377182,2.426,2677.3,2677.2,0.74692]
[1739758383386,2.426,2677.3,2677.1,1.1668]
[1739758383589,0.74694,2677.2,2677.1,1.91374]
[1739758383789,3.17293,2677.3,2677.2,0.74694]
[1739758384085,2.426,2677.3,2677.2,0.74694]
[1739758384989,3.17291,2677.3,2677.2,0.74694]
[1739758385282,0.74694,2677.2,2677.1,1.1668]
[1739758385488,0.74694,2677.2,2677.1,1.91375]
[1739758385686,2.426,2677.3,2677.1,1.1668]
[1739758385984,3.17294,2677.3,2677.2,0.74694]
[1739758389289,2.426,2677.3,2677.2,0.74694]
[1739758389993,3.17291,2677.3,2677.2,0.74694]
[1739758390196,2.426,2677.3,2677.2,0.74694]
[1739758390988,3.16987,2677.5,2677.4,0.74688]
[1739758391188,0.00559785,2677.8,2677.4,3.2078]
[1739758391496,2.42859785,2677.8,2677.7,3.9546]
[1739758391691,0.00559785,2677.8,2677.7,3.9546]
[1739758392694,0.75236785,2677.8,2677.7,3.2078]
[1739758393091,1.35086785,2677.8,2677.7,3.2078]
[1739758393692,0.60409785,2677.8,2677.7,3.2078]
[1739758393894,1.35086785,2677.8,2677.7,3.2078]
[1739758394799,0.60409785,2677.8,2677.4,0.74687]